Cogmind - Beta 17 @@@ ROGUE MODE // 2026.08.06 @ 18:30:29 Player: Floof Enjoyer Result: Destroyed by S-10 Pest with Light Assault Rifle Performance ------------- Evolutions (1) 500 Regions Visited (3) 600 Robots Destroyed (36) 180 Value Destroyed (995) 995 Prototype IDs (0) 0 Alien Tech Used (0) 0 Bonus (0) 0 TOTAL SCORE: 2275 Bonus ------- None Cogmind --------- Core Integrity 0/400 Matter 300/300 Energy 98/100 System Corruption 0% Temperature Cool (6) Movement Core (50) Location -9/Storage Parts ------- > --- POWER (1) -------- (None) > --- PROPULSION (4) --- (None) > --- UTILITY (2) ------ Heat Sink Improved Targeting Computer > --- WEAPON (2) ------- Small Laser > --- INVENTORY (5) ---- Improved Targeting Computer Improved Targeting Computer Weapon Shielding Hardened Light Armor Plating Peak State ------------ > --- POWER ------------ Ion Engine > --- PROPULSION ------- Wheel Wheel Wheel Wheel > --- UTILITY ---------- Heat Sink Improved Targeting Computer > --- WEAPON ----------- Beam Rifle Beam Rifle > --- INVENTORY -------- Cooling System Improved Targeting Computer Improved Targeting Computer Hardened Light Armor Plating Beam Rifle [Rating: 13] Favorites ----------- Power Ion Engine Engine Ion Engine Power Core Light Nuclear Core Propulsion Wheel Wheel Wheel Hover Unit Hover Unit Utility Heat Sink Device Heat Sink Processor Improved Targeting Computer Protection Light Armor Plating Weapon Beam Rifle Energy Gun Beam Rifle Ballistic Gun Heavy Assault Rifle Build | -11 -10 -9 -9 ------- Run | Yrd Mat Mat Sto Slots Evolved 2 | . . 2 . Power . | . . . . Propulsion 2 | . . 2 . Utility . | . . . . Weapon . | . . . . Parts Attached 36 | 6 4 14 12 Power 5 | 1 2 2 . Engine 4 | 1 1 2 . Core 1 | . 1 . . Reactor . | . . . . Propulsion 13 | 2 . 5 6 Treads . | . . . . Leg . | . . . . Wheel 11 | 2 . 3 6 Hover 2 | . . 2 . Flight . | . . . . Utility 7 | 1 1 2 3 Device 5 | 1 . 2 2 Storage . | . . . . Processor 1 | . . . 1 Hackware . | . . . . Protection 1 | . 1 . . Artifact . | . . . . Weapon 11 | 2 1 5 3 Energy Gun 7 | 2 . 2 3 Energy Cannon . | . . . . Ballistic Gun 4 | . 1 3 . Ballistic Cannon . | . . . . Launcher . | . . . . Special Weapon . | . . . . Impact Weapon . | . . . . Slashing Weapon . | . . . . Piercing Weapon . | . . . . Special Melee Weapon . | . . . . Unidentified Prototypes . | . . . . Parts Lost 15 | . 1 5 9 Power 3 | . 1 1 1 Propulsion 8 | . . 2 6 Utility 2 | . . 2 . Weapon 2 | . . . 2 Highest Loss Streak 6 | . 1 2 6 To Critical Strikes . | . . . . Average Backups 4 | 1 2 4 4 Power . | . . . . Propulsion . | . . . . Utility 2 | . . 1 4 Weapon 1 | . 1 2 . Tool/Special . | . . . . Unused Backups 9 | . . 2 7 Power . | . . . . Propulsion . | . . . . Utility 6 | . . . 6 Weapon 2 | . . 1 1 Tool/Special 1 | . . 1 . Average Slot Usage (%) 80 | . 95 67 87 Engine 8 | . 12 5 10 Core 2 | . . 5 . Wheel 21 | . 28 9 30 Hover 4 | . . 8 2 Device 12 | . 14 13 11 Processor 4 | . . . 10 Protection 3 | . 10 4 . Energy Gun 15 | . 17 8 21 Ballistic Gun 7 | . 10 13 . Peak Build Rating 13 | 8 11 11 13 Average Rating 9 | 4 8 9 10 On Entrance 7 | . 8 11 9 Avg Prop Armor Cover (%) . | . . . . Naked Turns . | . . . . Heaviest Build 13 | 6 11 13 13 Greatest Support 40 | 20 20 20 40 Greatest Overweight (x) 3 | . . 3 3 Average Overweight (x) . | . . . . Largest Inventory Capacity 5 | 5 5 5 5 Average Capacity 5 | 5 5 5 5 Most Carried 5 | 3 5 5 5 Average Carried 4 | 1 2 4 4 Final Capacity 5 | 5 5 5 5 Final Carried 5 | 2 4 5 4 Class Distribution -------------------- 55% | Scavenger-Mutant 44% | Mutant Dominant Class ---------------- Mutant | -10/Materials Mutant | -9/Materials Scavenger-Mutant | -9/Storage Resources | -11 -10 -9 -9 ----------- Run | Yrd Mat Mat Sto Matter Collected 660 | 260 58 188 154 Remotely . | . . . . Salvage Created 1381 | 106 232 474 569 Parts 83 | 7 14 29 33 Haulers Intercepted . | . . . . Recyclers Shooed 2 | . . . 2 Parts Field Recycled . | . . . . Retrieved Matter . | . . . . Parts Self-Destructed . | . . . . Prevented . | . . . . Parts Restored . | . . . . Kills | -11 -10 -9 -9 ------- Run | Yrd Mat Mat Sto Combat Hostiles Destroyed 24 | . 4 8 12 Guns 23 | . 4 8 11 Classes Destroyed 8 | 2 3 1 2 Worker 5 | . 1 1 3 Tunneler 2 | 1 . 1 . Recycler 2 | 1 . . 1 Operator 1 | . . . 1 Watcher 2 | . 1 1 . Swarmer 2 | . . . 2 Grunt 13 | . 4 3 6 Sentry 9 | . . 5 4 Best Kill Streak 5 | 1 3 4 5 Combat Bots Only 4 | . 2 3 4 Max Kills in Single Turn 2 | 1 1 2 1 Gunslinging 1 | . . 1 . Exploded . | . . . . Melee . | . . . . Uniques/NPCs Destroyed . | . . . . Combat | -11 -10 -9 -9 -------- Run | Yrd Mat Mat Sto Hostile Shots Fired 167 | . 33 49 85 Missed 40 | . 8 12 20 Hits 127 | . 25 37 65 Projectile 127 | . 25 37 65 Critical Strikes 1 | . . 1 . Damage Taken 1603 | . 350 504 749 Core 478 | . 76 187 215 Absorbed by Shields . | . . . . Core Remaining (%) 84 | 100 69 . . Volleys Fired 114 | 10 23 33 48 Largest 2 | 2 2 2 2 Hottest 121 | 80 60 112 121 Shots Fired 218 | 20 46 66 86 Gun 218 | 20 46 66 86 Cannon . | . . . . Launcher . | . . . . Special . | . . . . Kinetic 65 | . 23 42 . Thermal 153 | 20 23 24 86 Explosive . | . . . . Electromagnetic . | . . . . Robot Hit Streak 20 | 9 5 7 20 Robot Miss Streak 7 | 2 2 3 7 Penetration Max . | . . . . Secondary Targets 4 | . 1 2 1 Max Gunslinging Chain 1 | . 1 1 1 Shots Hit Robots 142 | 14 29 42 57 Core Hits 69 | 3 14 18 34 Critical Kills . | . . . . Critical Parts Destroyed . | . . . . Critical Strikes 4 | . . 1 3 Burn 4 | . . 1 3 Melee Attacks . | . . . . Impact . | . . . . Slashing . | . . . . Piercing . | . . . . Sneak Attacks . | . . . . Combat Hostiles . | . . . . Follow-up Attacks . | . . . . Damage Inflicted 1979 | 177 292 559 951 Guns 1894 | 177 292 559 866 Cannons . | . . . . Explosions 85 | . . . 85 Melee . | . . . . Ramming . | . . . . Kinetic 502 | . 123 379 . Thermal 1392 | 177 169 180 866 Explosive 85 | . . . 85 Electromagnetic . | . . . . Impact . | . . . . Slashing . | . . . . Piercing . | . . . . Highest Corruption . | . . . . Average Corruption . | . . . . Corruption Purged . | . . . . Corruption Blocked . | . . . . Overload Shots . | . . . . Overflow Damage 15 | . . . 15 Projectiles . | . . . . Explosions 15 | . . . 15 Melee . | . . . . Knockbacks . | . . . . Impact . | . . . . Kinetic . | . . . . Secondary . | . . . . Self-Inflicted Damage . | . . . . Shots . | . . . . Rammed . | . . . . Targets Rammed . | . . . . Kicked . | . . . . Crushed . | . . . . Highest Temperature 216 | 54 216 78 162 Average Temperature 60 | 22 102 24 47 Received Heat Transfer 600 | . 207 189 204 Siege Activations . | . . . . Martial Activations . | . . . . Shielding Activations . | . . . . Robots Disrupted . | . . . . Combat Hostiles . | . . . . Robots Corrupted . | . . . . Combat Hostiles . | . . . . Parts Fried . | . . . . Impact Corruptions . | . . . . Robots Melted 1 | . . . 1 Combat Hostiles 1 | . . . 1 Parts Melted 9 | . . . 9 Heat Transferred 3581 | 400 375 531 2275 Parts Sabotaged . | . . . . Parts Stolen . | . . . . Parts Stripped . | . . . . Power Chain Reactions . | . . . . Alert | -11 -10 -9 -9 ------- Run | Yrd Mat Mat Sto Maximum Alert Level . | . . . . Low Security (%) 100 | 100 100 100 100 Level 1 . | . . . . Level 2 . | . . . . Level 3 . | . . . . Level 4 . | . . . . Level 5 . | . . . . High Security . | . . . . Max Security . | . . . . Peak Influence 182 | 5 52 85 182 Initial 28 | . . 21 28 Average 40 | 1 14 34 63 Influence Increases 785 | 10 112 238 425 Destroy 0b10 Robot/C 480 | . 80 160 240 Destroy 0b10 Robot/NC 60 | 10 10 15 25 Destroy Leader 164 | . 22 62 80 Successful Hack 7 | . . . 7 Disable Machine 15 | . . . 15 Destroy Structure 14 | . . 1 13 Partial Spotted 15 | . . . 15 Lose Combat Pursuer 30 | . . . 30 Influence Decreases 636 | 10 60 221 345 Entered New Map 72 | . . 31 41 Time Decay 454 | 10 50 180 214 Lost Part 110 | . 10 10 90 Squads Dispatched 3 | . . 1 2 Investigation . | . . . . Extermination . | . . . . Reinforcement 3 | . . 1 2 Assault . | . . . . Garrison . | . . . . Intercept . | . . . . Searches Triggered . | . . . . Construction Impeded . | . . . . Haulers Reinforced . | . . . . Active Scanning Responses . | . . . . Cargo Convoy Interrupts . | . . . . Stealth | -11 -10 -9 -9 --------- Run | Yrd Mat Mat Sto Distress Signals 5 | . . 2 3 Communications Jammed . | . . . . Distress Signals . | . . . . Times Spotted 39 | . 6 13 20 Peak Tracking Total 6 | . 3 5 6 Tactical Retreats 1 | . . . 1 Traps | -11 -10 -9 -9 ------- Run | Yrd Mat Mat Sto Traps Triggered 1 | . . 1 . Indirectly . | . . . . Trap Hack Attempts . | . . . . Triggered . | . . . . Disarmed . | . . . . Reprogrammed . | . . . . Reused . | . . . . Traps Extracted . | . . . . Installed . | . . . . Triggered . | . . . . Machines | -11 -10 -9 -9 ---------- Run | Yrd Mat Mat Sto Machines Disabled 1 | . . . 1 Max in Single Turn 1 | . . . 1 Machines Repaired . | . . . . Machines Dismantled . | . . . . Machines Sabotaged . | . . . . Overloaded Fab Kills . | . . . . Hacking | -11 -10 -9 -9 --------- Run | Yrd Mat Mat Sto Machines Accessed 3 | . . . 3 Terminals 3 | . . . 3 Fabricators . | . . . . Repair Stations . | . . . . Recycling Units . | . . . . Scanalyzers . | . . . . Garrison Access . | . . . . Total Hacks 7 | . . . 7 Successful 2 | . . . 2 Failed 5 | . . . 5 Catastrophic 1 | . . . 1 Database Lockouts . | . . . . Manual . | . . . . Terminals 7 | . . . 7 Fabricators . | . . . . Repair Stations . | . . . . Recycling Units . | . . . . Scanalyzers . | . . . . Garrison Access . | . . . . Terminal Hacks 2 | . . . 2 Open Door 2 | . . . 2 Fabricator Hacks . | . . . . Repair Station Hacks . | . . . . Recycling Unit Hacks . | . . . . Scanalyzer . | . . . . Garrison Access Hacks . | . . . . Unauthorized Hacks . | . . . . Terminals . | . . . . Fabricators . | . . . . Repair Stations . | . . . . Recycling Units . | . . . . Scanalyzers . | . . . . Garrison Access . | . . . . Data Cores Recovered . | . . . . Used . | . . . . Hacking Detections 2 | . . . 2 Full Trace Events 1 | . . . 1 Feedback Events . | . . . . Feedback Blocked . | . . . . Robot Schematics Acquired . | . . . . Robots Built . | . . . . Authchips . | . . . . Time . | . . . . Total Robot Build Rating . | . . . . Part Schematics Acquired . | . . . . Parts Built . | . . . . Authchips . | . . . . Time . | . . . . Total Part Build Rating . | . . . . Part Studies Acquired . | . . . . Parts Repaired . | . . . . Time . | . . . . Parts Recycled . | . . . . Recycled Matter . | . . . . Retrieved Matter . | . . . . Retrieved Components . | . . . . Parts Scanalyzed . | . . . . Part Schematics Acquired . | . . . . Parts Damaged . | . . . . Bothacking | -11 -10 -9 -9 ------------ Run | Yrd Mat Mat Sto Used RIF Installer . | . . . . Robots Hacked . | . . . . Non-combat . | . . . . Combat . | . . . . Robot Hacks Applied . | . . . . Relay Couplers Released . | . . . . Fabnet Peak Effective % . | . . . . Robots Rewired . | . . . . Allies Hacked . | . . . . Hacks Repelled . | . . . . Allies | -11 -10 -9 -9 -------- Run | Yrd Mat Mat Sto Total Allies . | . . . . Largest Group . | . . . . Highest-Rated Group . | . . . . Highest-Rated Ally . | . . . . Total Orders . | . . . . Ally Attacks . | . . . . Total Damage . | . . . . Kills . | . . . . Allies Corrupted . | . . . . Allies Melted . | . . . . Intel | -11 -10 -9 -9 ------- Run | Yrd Mat Mat Sto Active Infowar (turns) 333 | 5 154 174 . Terrain 333 | 5 154 174 . Robot Analysis Total . | . . . . Derelict Logs Recovered . | . . . . Drone Launches . | . . . . Drone Recoveries . | . . . . Exploration | -11 -10 -9 -9 ------------- Run | Yrd Mat Mat Sto Turns Passed 1148 | 87 154 450 457 Spaces Moved 800 | 55 96 271 378 Core 12 | 1 . 5 6 Treads . | . . . . Legs . | . . . . Wheels 616 | 54 96 164 302 Hover 172 | . . 102 70 Flight . | . . . . Fastest Speed 50 | 50 80 80 50 Average Speed 85 | 79 80 97 78 Slowest Speed 200 | 80 80 200 200 Overloaded Moves . | . . . . Propulsion Burnouts . | . . . . Robots Hopped . | . . . . Potential Cave-ins . | . . . . Cave-ins Triggered . | . . . . Exploration Rate (%) 25 | 3 23 27 49 Regions Visited 3 Branch Regions 1 Pre-discovered Areas . | . . . . Known Exits Taken . | . . . . Unknown Exits Taken 3 | 1 1 1 . Scrap Searched . | . . . . Spaces Dug . | . . . . Terrain Destroyed 15 | . . . 15 Melee . | . . . . Projectile . | . . . . AOE 15 | . . . 15 Terrain Rammed . | . . . . Walls Destroyed . | . . . . Machines Disabled . | . . . . Actions | -11 -10 -9 -9 --------- Run | Yrd Mat Mat Sto Total 1059 | 78 131 394 456 Wait 51 | . . 51 . Move 797 | 54 95 270 378 Hop . | . . . . Pick Up 33 | 8 6 13 6 Fast Attach 10 | . . 3 7 Attach 14 | 6 2 5 1 Detach . | . . . . Swap 14 | . 3 7 4 Drop 26 | . 2 12 12 Fire 114 | 10 23 33 48 Melee . | . . . . Ram . | . . . . Kick . | . . . . Crush . | . . . . Escape Stasis . | . . . . Rewire . | . . . . Trap . | . . . . Miscellaneous . | . . . . Route ------- -11/Scrapyard -10/Materials -9/Materials (discovered 2 exits: [*Mat] / *Sto) -9/Storage History --------- Turn | Location | Event 27 | -11/Scrapyard | Discovered new exit (range 16) 88 | -11/Scrapyard | Entered Materials 188 | -10/Materials | Discovered new exit (range 16) 242 | -10/Materials | Entered another Materials area 242 | -9/Materials | Evolved 2 slots: Propulsion x2 318 | -9/Materials | Build established: Mutant 520 | -9/Materials | Discovered new exit (range 16) 663 | -9/Materials | Discovered new exit (range 14) 692 | -9/Materials | Entered Storage 780 | -9/Storage | Build established: Scavenger-Mutant 948 | -9/Storage | Core integrity fell below 50% 1112 | -9/Storage | Core integrity fell below 20% 1149 | -9/Storage | Destroyed by S-10 Pest with Light Assault Rifle Last Messages --------------- Com. Wheel destroyed. K-01 Serf collects debris. S-10 Pest destroyed. Spread Laser destroyed. K-01 Serf collects debris. Beam Rifle destroyed. Ion Engine destroyed. W-16 Scout sends out distress signal. K-01 Serf collects debris. Wheel destroyed. K-01 Serf collects debris. W-16 Scout sends out distress signal. Wheel destroyed. K-01 Serf destroyed. S-10 Pest destroyed. U-05 Engineer lays Concrete. M-13 Machinist repairs W-16 Scout. U-05 Engineer lays Concrete. M-13 Machinist repairs W-16 Scout Hover Unit. U-05 Engineer lays Concrete. Map ----- +----------------------------------------------------+ | | | | | | | | | ?????????????????????????????????????????????????? | | ?????????????????????????????????????????????????? | | ?????????????????????????????????????????????????? | | ?????????????????????????????????????????????????? | | ?????????????????????????????????????????????????? | | ?????????????????????????????????????????????????? | | ?????????????????????????????????????????????????? | | ?????????????????????????????????????????????????? | | ?????????????????????????????????????????????????? | | ?????????????????????????????????????????????????? | | ?????????????????????????????????????????????????? | | ?????????????????????????????????????????????????? | | ?????????????????????????????????????????????????? | | ?????????????????????????????????????????????????? | | ?????????????????????????????????????????????????? | | ????????????####+#########???????????????????????? | | ????????????? ????????????????????????? | | ??????????????? ????????????????????????? | | ????????????????? ????????????????????????? | | ??????????????????## [/#####????????????????????? | | ?????????????????## sgg[ #????????????????????? | | ????????###?????## =%*@ #????????????????????? | | ######### ####### # = #????????????????????? | | ## #?# u*% #????????????????????? | | """ ## """" #?# m #????????????????????? | | """ ## """" #?# u= #????????????????????? | | """ ## """" #?## %% #????????????????????? | | ## "" #??## ="T" #????????????????????? | | ""## #???# """ #????????????????????? | | T"## #???###+######????????????????????? | | ""## #?????# ######????????????????????? | | ## *!% #?????# # #????????????????????? | | #+#########"######???# # #????????????????????? | | %! #???# # #????????????????????? | | !%[ #???# # ! #????????????????????? | | #???# # !! #????????????????????? | | #+#########+########## # #????????????????????? | | #?# # [# # #????????????????????? | | """#?# """"" # # # #????????????????????? | | """#?# "???" # = +=+ #????????????????????? | | """#?# ""??" # #%###########+#?????????????? | | #?# "??"" #]! #!! ??????????? | | """#?# "???" # / #% ??????????? | | """#?# """"" # # ############+?????????????? | | """#?# # # #?????????????????????????? | | #?# # # #?????????????????????????? | +----------------------------------------------------+ Best States ------------- Heat Dissipation 48 Energy Generation 14 Energy Capacity 250 Matter Stores 300 Matter Capacity 300 Sight Range 16 Terrain Scan Range 16 Terrain Scan Density 10 Armor Coverage 150 Evasion (%) 53 Targeting Accuracy 6 Item Schematics ----------------- None Robot Schematics ------------------ None Fabricated ------------ Nothing Repaired ---------- Nothing Studied --------- None Alien Tech Used ----------------- None Achievements -------------- None Challenges ------------ None Game ------ Seed NuclearBurstPrototype Manual? 0 Play Time 00:13:00 Cumulative 15.7 hours Start 2026.08.06 @ 18:19:02 End 2026.08.06 @ 18:30:29 Sessions 1 Manual Loads 0 Difficulty Rogue Special Mode None Game No. 56 Rogue 56 Adventurer 0 Explorer 0 Win Type - Total 0 Types 0/0/0/0/0/0/0/0/0/0 Lore% 14 Gallery% 21 Achievement% 16 Wizard Run 0 Options --------- Layout 1 ASCII 0 Keyboard 0 Movement Mouse Keybinds 0 Fullscreen 1 Font 24/Smallcaps Map View 50x35 Zoom Use 0% Tactical HUD 0 Map Filters NONE Filters NONE Steam 1 RUN: 03051195-5ac5-4ca9-9b14-df446388751e